[Event "Late-Titled-Tuesday-Blitz-April-23-2024"]
[Site "Chess.com"]
[Date "2024.04.23"]
[Round "5"]
[White "Hamisandwich"]
[Black "subham777"]
[Result "1-0"]
[WhiteElo "2731"]
[BlackElo "2534"]
[TimeControl "180+1"]
[EndTime "14:56:17 PDT"]
[Termination "Hamisandwich won by checkmate"]

1. e4 {[%clk 0:03:00.9]} 1... e6 {[%clk 0:02:58.8]} 2. f4 {[%clk 0:02:56.2]}
2... d5 {[%clk 0:02:58.6]} 3. e5 {[%clk 0:02:56.7]} 3... c5 {[%clk 0:02:58.5]}
4. Nf3 {[%clk 0:02:57.3]} 4... Nc6 {[%clk 0:02:58.6]} 5. c3 {[%clk 0:02:57.8]}
5... d4 {[%clk 0:02:58]} 6. Bd3 {[%clk 0:02:57.6]} 6... Nge7 {[%clk 0:02:57]} 7.
Be4 {[%clk 0:02:55.3]} 7... g6 {[%clk 0:02:53.8]} 8. Qe2 {[%clk 0:02:48.2]} 8...
Bg7 {[%clk 0:02:51.8]} 9. d3 {[%clk 0:02:41.9]} 9... O-O {[%clk 0:02:49.7]} 10.
c4 {[%clk 0:02:36.2]} 10... a6 {[%clk 0:02:41.4]} 11. O-O {[%clk 0:02:33.9]}
11... b5 {[%clk 0:02:40.5]} 12. Na3 {[%clk 0:02:30.9]} 12... Rb8 {[%clk
0:02:39.4]} 13. Bd2 {[%clk 0:02:20.9]} 13... bxc4 {[%clk 0:02:31.7]} 14. Nxc4
{[%clk 0:02:21.8]} 14... Nd5 {[%clk 0:02:32]} 15. b3 {[%clk 0:02:09.7]} 15... h6
{[%clk 0:02:17.9]} 16. Nd6 {[%clk 0:01:58.4]} 16... a5 {[%clk 0:02:08.6]} 17.
Rac1 {[%clk 0:01:46.3]} 17... Qb6 {[%clk 0:02:00]} 18. h4 {[%clk 0:01:23.5]}
18... Ba6 {[%clk 0:01:41.5]} 19. h5 {[%clk 0:01:21.2]} 19... Nce7 {[%clk
0:01:40.4]} 20. Nc4 {[%clk 0:01:17.6]} 20... Bxc4 {[%clk 0:01:26.2]} 21. Rxc4
{[%clk 0:01:16.9]} 21... Nf5 {[%clk 0:01:18.7]} 22. Bxf5 {[%clk 0:01:06.5]}
22... gxf5 {[%clk 0:01:08.8]} 23. Rfc1 {[%clk 0:01:06.8]} 23... Nb4 {[%clk
0:00:58.4]} 24. Bxb4 {[%clk 0:01:03.7]} 24... cxb4 {[%clk 0:00:39.2]} 25. Kh2
{[%clk 0:00:57.4]} 25... Rfd8 {[%clk 0:00:37]} 26. Rg1 {[%clk 0:00:54.6]} 26...
Rdc8 {[%clk 0:00:24.9]} 27. g4 {[%clk 0:00:49.8]} 27... Rxc4 {[%clk 0:00:25.2]}
28. dxc4 {[%clk 0:00:50.3]} 28... d3 {[%clk 0:00:19.7]} 29. Qxd3 {[%clk
0:00:48.8]} 29... Rd8 {[%clk 0:00:19.6]} 30. Qe2 {[%clk 0:00:45.7]} 30... fxg4
{[%clk 0:00:19.3]} 31. Rxg4 {[%clk 0:00:46.6]} 31... Kh8 {[%clk 0:00:18.4]} 32.
Rg2 {[%clk 0:00:41.1]} 32... a4 {[%clk 0:00:15.8]} 33. Nd2 {[%clk 0:00:39.1]}
33... axb3 {[%clk 0:00:13.3]} 34. axb3 {[%clk 0:00:40]} 34... Qd4 {[%clk
0:00:12.5]} 35. Ne4 {[%clk 0:00:40.5]} 35... Qa1 {[%clk 0:00:10.2]} 36. Qg4
{[%clk 0:00:36.6]} 36... Rg8 {[%clk 0:00:09.8]} 37. Nf6 {[%clk 0:00:34.3]} 37...
Qa8 {[%clk 0:00:07.8]} 38. Nxg8 {[%clk 0:00:32.5]} 38... Qxg8 {[%clk 0:00:08.7]}
39. c5 {[%clk 0:00:28.8]} 39... Qe8 {[%clk 0:00:08.1]} 40. Qxg7# {[%clk
0:00:29]} 1-0

[Event "Late-Titled-Tuesday-Blitz-April-23-2024"]
[Site "Chess.com"]
[Date "2024.04.23"]
[Round "5"]
[White "chucksterf10"]
[Black "AlexeiShirov"]
[Result "1-0"]
[WhiteElo "2628"]
[BlackElo "2801"]
[TimeControl "180+1"]
[EndTime "14:56:19 PDT"]
[Termination "chucksterf10 won by resignation"]

1. d4 {[%clk 0:02:50.7]} 1... d5 {[%clk 0:02:59.7]} 2. c4 {[%clk 0:02:50.7]}
2... c6 {[%clk 0:02:59.8]} 3. cxd5 {[%clk 0:02:51.2]} 3... cxd5 {[%clk
0:02:59.1]} 4. Bf4 {[%clk 0:02:51.7]} 4... Nc6 {[%clk 0:02:58]} 5. e3 {[%clk
0:02:52]} 5... Nf6 {[%clk 0:02:58]} 6. Nc3 {[%clk 0:02:51.9]} 6... Bg4 {[%clk
0:02:57.5]} 7. Qb3 {[%clk 0:02:50.6]} 7... Na5 {[%clk 0:02:56.9]} 8. Qa4+ {[%clk
0:02:50.4]} 8... Bd7 {[%clk 0:02:56.5]} 9. Qc2 {[%clk 0:02:50.9]} 9... Rc8
{[%clk 0:02:55.9]} 10. Bd3 {[%clk 0:02:47.8]} 10... b5 {[%clk 0:02:55.6]} 11. a3
{[%clk 0:02:47.6]} 11... g6 {[%clk 0:02:55]} 12. Nf3 {[%clk 0:02:45.1]} 12...
Bg7 {[%clk 0:02:54.8]} 13. h3 {[%clk 0:02:43.7]} 13... O-O {[%clk 0:02:52.7]}
14. O-O {[%clk 0:02:44.3]} 14... Ne4 {[%clk 0:02:52.2]} 15. Rfc1 {[%clk
0:02:23.8]} 15... Nxc3 {[%clk 0:02:39.1]} 16. bxc3 {[%clk 0:02:23]} 16... Nc4
{[%clk 0:02:39.2]} 17. e4 {[%clk 0:02:01.5]} 17... dxe4 {[%clk 0:02:34.3]} 18.
Bxe4 {[%clk 0:02:00.6]} 18... Qa5 {[%clk 0:02:34]} 19. Nd2 {[%clk 0:01:50]}
19... Be6 {[%clk 0:02:26.7]} 20. Nb3 {[%clk 0:01:46.5]} 20... Qb6 {[%clk
0:02:11.2]} 21. Nc5 {[%clk 0:01:44.9]} 21... Rfd8 {[%clk 0:02:06.7]} 22. Nxe6
{[%clk 0:01:20.5]} 22... Qxe6 {[%clk 0:02:05.1]} 23. Bb7 {[%clk 0:01:19.9]}
23... Qf6 {[%clk 0:01:50.3]} 24. Bg3 {[%clk 0:00:56.3]} 24... Bh6 {[%clk
0:01:41.2]} 25. Re1 {[%clk 0:00:54.9]} 25... e6 {[%clk 0:01:19.7]} 26. Bxc8
{[%clk 0:00:54.1]} 26... Rxc8 {[%clk 0:01:19.2]} 27. a4 {[%clk 0:00:54.4]} 27...
a6 {[%clk 0:01:01.1]} 28. axb5 {[%clk 0:00:54.1]} 28... axb5 {[%clk 0:01:00.1]}
29. Ra7 {[%clk 0:00:48]} 29... Nb6 {[%clk 0:00:53.8]} 30. Be5 {[%clk 0:00:45.1]}
30... Qd8 {[%clk 0:00:51.4]} 31. Rb1 {[%clk 0:00:42.4]} 31... Nd5 {[%clk
0:00:37.5]} 32. Rxb5 {[%clk 0:00:35.4]} 32... Nxc3 {[%clk 0:00:29.6]} 33. Rc5
{[%clk 0:00:28.8]} 33... Rxc5 {[%clk 0:00:26]} 34. dxc5 {[%clk 0:00:29.7]} 34...
Nd5 {[%clk 0:00:24.8]} 35. c6 {[%clk 0:00:28]} 35... Bf8 {[%clk 0:00:19.7]} 36.
c7 {[%clk 0:00:25.9]} 36... Qc8 {[%clk 0:00:19.9]} 37. Qc6 {[%clk 0:00:24.7]}
37... Ne7 {[%clk 0:00:18.9]} 38. Ra8 {[%clk 0:00:17.9]} 1-0

[Event "Late-Titled-Tuesday-Blitz-April-23-2024"]
[Site "Chess.com"]
[Date "2024.04.23"]
[Round "5"]
[White "MyDream003"]
[Black "HajiyevKanan"]
[Result "1/2-1/2"]
[WhiteElo "2821"]
[BlackElo "2615"]
[TimeControl "180+1"]
[EndTime "14:56:19 PDT"]
[Termination "Game drawn by repetition"]

1. Nf3 {[%clk 0:02:59.5]} 1... d5 {[%clk 0:02:59.3]} 2. d4 {[%clk 0:02:59.2]}
2... c5 {[%clk 0:02:58.6]} 3. c4 {[%clk 0:02:56]} 3... cxd4 {[%clk 0:02:59.5]}
4. cxd5 {[%clk 0:02:55.6]} 4... Nf6 {[%clk 0:02:58.8]} 5. Qxd4 {[%clk
0:02:54.6]} 5... Qxd5 {[%clk 0:02:59]} 6. Nc3 {[%clk 0:02:54.6]} 6... Qxd4
{[%clk 0:02:58.9]} 7. Nxd4 {[%clk 0:02:55.5]} 7... a6 {[%clk 0:02:59.8]} 8. e4
{[%clk 0:02:52.4]} 8... e5 {[%clk 0:02:59.6]} 9. Nc2 {[%clk 0:02:50.3]} 9... Nc6
{[%clk 0:02:57.6]} 10. f3 {[%clk 0:02:49.5]} 10... Nb4 {[%clk 0:02:55.2]} 11.
Nxb4 {[%clk 0:02:40.1]} 11... Bxb4 {[%clk 0:02:56.1]} 12. Bd2 {[%clk 0:02:40.4]}
12... Be6 {[%clk 0:02:54.9]} 13. a3 {[%clk 0:02:31.4]} 13... Bc5 {[%clk
0:02:50.2]} 14. Bd3 {[%clk 0:02:26.5]} 14... O-O-O {[%clk 0:02:44.3]} 15. Bc2
{[%clk 0:02:24.7]} 15... Kb8 {[%clk 0:02:39.6]} 16. O-O-O {[%clk 0:02:24.2]}
16... Rd7 {[%clk 0:02:35.1]} 17. Bg5 {[%clk 0:02:20.5]} 17... Rhd8 {[%clk
0:02:30.7]} 18. Rxd7 {[%clk 0:02:19.3]} 18... Rxd7 {[%clk 0:02:31.6]} 19. Rd1
{[%clk 0:02:07.4]} 19... Rxd1+ {[%clk 0:02:23.8]} 20. Nxd1 {[%clk 0:02:08.3]}
20... Ne8 {[%clk 0:02:14.6]} 21. Bd2 {[%clk 0:01:46.6]} 21... Kc7 {[%clk
0:02:11]} 22. Ne3 {[%clk 0:01:45.8]} 22... f6 {[%clk 0:02:07]} 23. Bd3 {[%clk
0:01:43.1]} 23... Nd6 {[%clk 0:02:05.1]} 24. b4 {[%clk 0:01:40.2]} 24... Bd4
{[%clk 0:02:04.1]} 25. Nc2 {[%clk 0:01:37]} 25... Bg1 {[%clk 0:02:03.2]} 26. h3
{[%clk 0:01:37.3]} 26... Nb5 {[%clk 0:02:01.5]} 27. Bxb5 {[%clk 0:01:27.6]}
27... axb5 {[%clk 0:02:02.4]} 28. Be3 {[%clk 0:01:28.2]} 28... Bh2 {[%clk
0:01:59]} 29. Kd2 {[%clk 0:01:19.4]} 29... Bc4 {[%clk 0:01:49.4]} 30. Bf2 {[%clk
0:01:12.1]} 30... Bf4+ {[%clk 0:01:47]} 31. Be3 {[%clk 0:01:06.6]} 31... Bg3
{[%clk 0:01:46.6]} 32. Bc5 {[%clk 0:01:00.7]} 32... Bf1 {[%clk 0:01:42.4]} 33.
Ne3 {[%clk 0:00:46.7]} 33... Bf4 {[%clk 0:01:42.2]} 34. g3 {[%clk 0:00:46.9]}
34... Bxe3+ {[%clk 0:01:33.7]} 35. Kxe3 {[%clk 0:00:47.8]} 35... Bxh3 {[%clk
0:01:34]} 36. Bf8 {[%clk 0:00:47.8]} 36... g6 {[%clk 0:01:25.1]} 37. Bg7 {[%clk
0:00:47.7]} 37... f5 {[%clk 0:01:24.3]} 38. Bxe5+ {[%clk 0:00:48.6]} 38... Kd7
{[%clk 0:01:15.6]} 39. exf5 {[%clk 0:00:44.3]} 39... Bxf5 {[%clk 0:01:15]} 40.
Kd4 {[%clk 0:00:41.6]} 40... Kc6 {[%clk 0:01:12.8]} 41. Bf4 {[%clk 0:00:41.1]}
41... Bc2 {[%clk 0:01:09.2]} 42. Be3 {[%clk 0:00:37.6]} 42... Bd1 {[%clk
0:01:08.9]} 43. Ke4 {[%clk 0:00:38.2]} 43... Kd6 {[%clk 0:01:04.6]} 44. g4
{[%clk 0:00:36.2]} 44... h5 {[%clk 0:01:01.5]} 45. gxh5 {[%clk 0:00:35.6]} 45...
gxh5 {[%clk 0:01:02.4]} 46. Bf2 {[%clk 0:00:36.2]} 46... Ke6 {[%clk 0:00:54.4]}
47. Bg3 {[%clk 0:00:35.6]} 47... Bc2+ {[%clk 0:00:50]} 48. Kd4 {[%clk
0:00:33.5]} 48... Bd1 {[%clk 0:00:46.2]} 49. Ke4 {[%clk 0:00:32.8]} 49... Bc2+
{[%clk 0:00:46.6]} 50. Kd4 {[%clk 0:00:33.1]} 50... Bd1 {[%clk 0:00:47.2]} 51.
Ke4 {[%clk 0:00:33.6]} 1/2-1/2

[Event "Late-Titled-Tuesday-Blitz-April-23-2024"]
[Site "Chess.com"]
[Date "2024.04.23"]
[Round "5"]
[White "ChessBrainiacOnTwitch"]
[Black "Levanzovsky"]
[Result "1-0"]
[WhiteElo "2796"]
[BlackElo "2509"]
[TimeControl "180+1"]
[EndTime "14:56:19 PDT"]
[Termination "ChessBrainiacOnTwitch won by resignation"]

1. Nf3 {[%clk 0:00:49.1]} 1... Nf6 {[%clk 0:02:58.1]} 2. g3 {[%clk 0:00:50]}
2... e6 {[%clk 0:02:58]} 3. Bg2 {[%clk 0:00:50.9]} 3... d5 {[%clk 0:02:58.9]} 4.
O-O {[%clk 0:00:51.8]} 4... Be7 {[%clk 0:02:59.3]} 5. d3 {[%clk 0:00:52.7]} 5...
O-O {[%clk 0:02:59.1]} 6. Nbd2 {[%clk 0:00:53.6]} 6... c5 {[%clk 0:02:59.6]} 7.
e4 {[%clk 0:00:54.4]} 7... Nc6 {[%clk 0:03:00.5]} 8. Re1 {[%clk 0:00:55.1]} 8...
Qc7 {[%clk 0:02:58.2]} 9. Qe2 {[%clk 0:00:55.8]} 9... b5 {[%clk 0:02:51.6]} 10.
a4 {[%clk 0:00:55.6]} 10... b4 {[%clk 0:02:50.2]} 11. e5 {[%clk 0:00:55.3]}
11... Nd7 {[%clk 0:02:49.8]} 12. h4 {[%clk 0:00:55.9]} 12... Re8 {[%clk
0:02:44.6]} 13. Nf1 {[%clk 0:00:56.2]} 13... f6 {[%clk 0:02:44.7]} 14. exf6
{[%clk 0:00:55.6]} 14... Bxf6 {[%clk 0:02:45]} 15. N1h2 {[%clk 0:00:54.8]} 15...
Bb7 {[%clk 0:02:31.7]} 16. Ng4 {[%clk 0:00:54.7]} 16... Qd8 {[%clk 0:02:32.2]}
17. Ng5 {[%clk 0:00:53.5]} 17... Nde5 {[%clk 0:02:23.3]} 18. Nxf6+ {[%clk
0:00:46.5]} 18... Qxf6 {[%clk 0:02:22.9]} 19. c3 {[%clk 0:00:37.1]} 19... bxc3
{[%clk 0:02:22.4]} 20. bxc3 {[%clk 0:00:38]} 20... h6 {[%clk 0:02:22.9]} 21. Nh3
{[%clk 0:00:36.1]} 21... Rf8 {[%clk 0:02:22.1]} 22. Nf4 {[%clk 0:00:35.4]} 22...
Rae8 {[%clk 0:02:22.5]} 23. Rb1 {[%clk 0:00:35.5]} 23... Ba6 {[%clk 0:02:22]}
24. Ba3 {[%clk 0:00:31.8]} 24... g5 {[%clk 0:02:19.1]} 25. hxg5 {[%clk
0:00:32.1]} 25... hxg5 {[%clk 0:02:20]} 26. Nh5 {[%clk 0:00:31.6]} 26... Qf7
{[%clk 0:02:08.1]} 27. Rb5 {[%clk 0:00:22.8]} 27... Qg6 {[%clk 0:01:18.8]} 28.
Bxc5 {[%clk 0:00:20.5]} 28... Rf7 {[%clk 0:01:19.4]} 29. d4 {[%clk 0:00:18.9]}
29... Nd7 {[%clk 0:01:05.4]} 30. Bd6 {[%clk 0:00:19.1]} 30... Rh7 {[%clk
0:01:01.1]} 31. g4 {[%clk 0:00:19]} 31... Nd8 {[%clk 0:00:52.3]} 32. Bxd5 {[%clk
0:00:17]} 32... Rh6 {[%clk 0:00:32.8]} 33. Be4 {[%clk 0:00:17.1]} 33... Qf7
{[%clk 0:00:32]} 34. Rxg5+ {[%clk 0:00:17.2]} 34... Kh8 {[%clk 0:00:30.5]} 35.
Qxa6 {[%clk 0:00:17.3]} 35... Rg8 {[%clk 0:00:27.6]} 36. Qb5 {[%clk 0:00:16]}
36... e5 {[%clk 0:00:26.5]} 37. Rxg8+ {[%clk 0:00:15.5]} 37... Qxg8 {[%clk
0:00:27.4]} 38. Bxe5+ {[%clk 0:00:13.7]} 38... Nxe5 {[%clk 0:00:28]} 39. Qxe5+
{[%clk 0:00:14.6]} 1-0

[Event "Late-Titled-Tuesday-Blitz-April-23-2024"]
[Site "Chess.com"]
[Date "2024.04.23"]
[Round "5"]
[White "alex1531"]
[Black "KorolDimitriy75"]
[Result "1/2-1/2"]
[WhiteElo "2512"]
[BlackElo "2355"]
[TimeControl "180+1"]
[EndTime "14:56:20 PDT"]
[Termination "Game drawn by repetition"]

1. d4 {[%clk 0:02:51.5]} 1... Nf6 {[%clk 0:02:59.5]} 2. Bg5 {[%clk 0:02:42.8]}
2... Ne4 {[%clk 0:02:58.3]} 3. Bf4 {[%clk 0:02:38.4]} 3... c5 {[%clk 0:02:58.3]}
4. f3 {[%clk 0:02:38]} 4... Qa5+ {[%clk 0:02:57.4]} 5. c3 {[%clk 0:02:37.8]}
5... Nf6 {[%clk 0:02:57.4]} 6. Nd2 {[%clk 0:02:38.2]} 6... cxd4 {[%clk
0:02:55.8]} 7. Nb3 {[%clk 0:02:38.8]} 7... Qb6 {[%clk 0:02:55.8]} 8. Nxd4 {[%clk
0:02:30.1]} 8... Nc6 {[%clk 0:02:52]} 9. e4 {[%clk 0:02:27.5]} 9... d6 {[%clk
0:02:48.6]} 10. Be3 {[%clk 0:02:12.5]} 10... Qd8 {[%clk 0:02:34]} 11. Bc4 {[%clk
0:02:02.6]} 11... g6 {[%clk 0:02:33.3]} 12. Nge2 {[%clk 0:02:02.4]} 12... Bg7
{[%clk 0:02:33.2]} 13. O-O {[%clk 0:02:02.5]} 13... O-O {[%clk 0:02:33.7]} 14.
a4 {[%clk 0:02:00.5]} 14... Bd7 {[%clk 0:02:31.1]} 15. a5 {[%clk 0:02:00.3]}
15... Nxa5 {[%clk 0:02:26.7]} 16. Bd3 {[%clk 0:01:52.8]} 16... Nc6 {[%clk
0:02:25.3]} 17. Nxc6 {[%clk 0:01:52.9]} 17... bxc6 {[%clk 0:02:23.2]} 18. b4
{[%clk 0:01:39.5]} 18... a5 {[%clk 0:02:20.4]} 19. bxa5 {[%clk 0:01:28.4]} 19...
Rxa5 {[%clk 0:02:21.3]} 20. Qb3 {[%clk 0:01:28.8]} 20... Rxa1 {[%clk 0:01:49.9]}
21. Rxa1 {[%clk 0:01:29.7]} 21... Qb8 {[%clk 0:01:49.7]} 22. Qc2 {[%clk
0:01:20.5]} 22... c5 {[%clk 0:01:42.7]} 23. Bc4 {[%clk 0:01:19.4]} 23... Bc6
{[%clk 0:01:36]} 24. e5 {[%clk 0:01:13.4]} 24... Nd5 {[%clk 0:01:33.9]} 25. Bxd5
{[%clk 0:01:10.7]} 25... Bxd5 {[%clk 0:01:34.8]} 26. exd6 {[%clk 0:01:09.3]}
26... exd6 {[%clk 0:01:31.3]} 27. Rb1 {[%clk 0:01:09.1]} 27... Qc7 {[%clk
0:01:23.3]} 28. Bf4 {[%clk 0:01:08.7]} 28... Re8 {[%clk 0:01:14.3]} 29. Ng3
{[%clk 0:00:59.4]} 29... Qc6 {[%clk 0:00:44.5]} 30. Rd1 {[%clk 0:00:52.9]} 30...
Bf8 {[%clk 0:00:21.4]} 31. c4 {[%clk 0:00:46.1]} 31... Be6 {[%clk 0:00:21.3]}
32. Ne4 {[%clk 0:00:46.7]} 32... Rd8 {[%clk 0:00:18.4]} 33. Qc3 {[%clk
0:00:37.1]} 33... Bg7 {[%clk 0:00:17.1]} 34. Nf6+ {[%clk 0:00:31.9]} 34... Kh8
{[%clk 0:00:17.1]} 35. Bh6 {[%clk 0:00:30.7]} 35... Bxh6 {[%clk 0:00:11.3]} 36.
Nh5+ {[%clk 0:00:23.7]} 36... Kg8 {[%clk 0:00:10.3]} 37. Nf6+ {[%clk 0:00:24.3]}
37... Kh8 {[%clk 0:00:09.7]} 38. Nh5+ {[%clk 0:00:24.3]} 38... Kg8 {[%clk
0:00:09.8]} 39. Nf6+ {[%clk 0:00:24.2]} 39... Kh8 {[%clk 0:00:09.5]} 1/2-1/2

[Event "Late-Titled-Tuesday-Blitz-April-23-2024"]
[Site "Chess.com"]
[Date "2024.04.23"]
[Round "5"]
[White "FM_Kappeler"]
[Black "Zampronha1971"]
[Result "0-1"]
[WhiteElo "2272"]
[BlackElo "2450"]
[TimeControl "180+1"]
[EndTime "14:56:20 PDT"]
[Termination "Zampronha1971 won on time"]

1. d4 {[%clk 0:03:00.9]} 1... Nf6 {[%clk 0:02:59.3]} 2. c4 {[%clk 0:02:59.8]}
2... e6 {[%clk 0:02:59.7]} 3. g3 {[%clk 0:02:59.2]} 3... d5 {[%clk 0:02:57.3]}
4. Bg2 {[%clk 0:02:58.9]} 4... Be7 {[%clk 0:02:55.7]} 5. Nf3 {[%clk 0:02:59]}
5... O-O {[%clk 0:02:56.1]} 6. O-O {[%clk 0:02:59.4]} 6... dxc4 {[%clk 0:02:54]}
7. Qa4 {[%clk 0:02:58.5]} 7... a6 {[%clk 0:02:53.2]} 8. Qxc4 {[%clk 0:02:58.3]}
8... b5 {[%clk 0:02:52.7]} 9. Qc2 {[%clk 0:02:58.1]} 9... Bb7 {[%clk 0:02:52.7]}
10. Bg5 {[%clk 0:02:58.3]} 10... Nc6 {[%clk 0:02:49.5]} 11. Rd1 {[%clk
0:02:48.4]} 11... Nd5 {[%clk 0:02:37]} 12. Bxe7 {[%clk 0:02:45.4]} 12... Ndxe7
{[%clk 0:02:37.9]} 13. Nc3 {[%clk 0:02:27.9]} 13... Qd7 {[%clk 0:02:16.1]} 14.
Ne4 {[%clk 0:02:17.7]} 14... Nb4 {[%clk 0:02:13.7]} 15. Qb1 {[%clk 0:02:14.3]}
15... Bxe4 {[%clk 0:02:11.1]} 16. Qxe4 {[%clk 0:02:13.7]} 16... Nbd5 {[%clk
0:02:04.6]} 17. Rac1 {[%clk 0:02:11.1]} 17... Nf6 {[%clk 0:02:03.5]} 18. Qc2
{[%clk 0:02:05.2]} 18... Rac8 {[%clk 0:01:59.6]} 19. Ne5 {[%clk 0:01:57.1]}
19... Qd6 {[%clk 0:01:59.7]} 20. Bb7 {[%clk 0:01:36.3]} 20... Rb8 {[%clk
0:01:57.7]} 21. Qxc7 {[%clk 0:01:34.5]} 21... Qxc7 {[%clk 0:01:50.7]} 22. Rxc7
{[%clk 0:01:33.4]} 22... Ned5 {[%clk 0:01:51.2]} 23. Bxd5 {[%clk 0:01:27.5]}
23... Nxd5 {[%clk 0:01:52.1]} 24. Ra7 {[%clk 0:01:21.3]} 24... Ra8 {[%clk
0:01:50.2]} 25. Rxa8 {[%clk 0:01:17.7]} 25... Rxa8 {[%clk 0:01:51.1]} 26. Rc1
{[%clk 0:01:17.6]} 26... f6 {[%clk 0:01:49.3]} 27. Nd3 {[%clk 0:01:16.4]} 27...
a5 {[%clk 0:01:41]} 28. Rc6 {[%clk 0:01:15.3]} 28... Kf7 {[%clk 0:01:37.2]} 29.
Nc5 {[%clk 0:01:11.9]} 29... Nb4 {[%clk 0:01:32.7]} 30. Rc7+ {[%clk 0:01:07.4]}
30... Kg6 {[%clk 0:01:29.8]} 31. Nxe6 {[%clk 0:00:57.6]} 31... Nxa2 {[%clk
0:01:27.7]} 32. Rxg7+ {[%clk 0:00:57.2]} 32... Kf5 {[%clk 0:01:28.2]} 33. d5
{[%clk 0:00:46.7]} 33... Nb4 {[%clk 0:01:21.9]} 34. Nd4+ {[%clk 0:00:39.8]}
34... Ke5 {[%clk 0:01:21.4]} 35. Nxb5 {[%clk 0:00:38.3]} 35... Nxd5 {[%clk
0:01:16.9]} 36. Rxh7 {[%clk 0:00:29.4]} 36... Rb8 {[%clk 0:01:17.3]} 37. Nc3
{[%clk 0:00:26.9]} 37... Nxc3 {[%clk 0:00:57.8]} 38. bxc3 {[%clk 0:00:26]} 38...
Ra8 {[%clk 0:00:58.7]} 39. Re7+ {[%clk 0:00:11.9]} 39... Kd5 {[%clk 0:00:56.6]}
40. Rd7+ {[%clk 0:00:07.6]} 40... Kc4 {[%clk 0:00:55.3]} 41. Rc7+ {[%clk
0:00:06.8]} 41... Kb3 {[%clk 0:00:55.5]} 42. Rb7+ {[%clk 0:00:06.5]} 42... Kc2
{[%clk 0:00:52.9]} 43. h4 {[%clk 0:00:01.2]} 43... a4 {[%clk 0:00:53.1]} 44. h5
{[%clk 0:00:01.5]} 44... a3 {[%clk 0:00:53.5]} 0-1

[Event "Late-Titled-Tuesday-Blitz-April-23-2024"]
[Site "Chess.com"]
[Date "2024.04.23"]
[Round "5"]
[White "Meri-Arabidze"]
[Black "jcibarra"]
[Result "0-1"]
[WhiteElo "2685"]
[BlackElo "2995"]
[TimeControl "180+1"]
[EndTime "14:56:27 PDT"]
[Termination "jcibarra won on time"]

1. c4 {[%clk 0:03:00.9]} 1... e5 {[%clk 0:02:59.4]} 2. Nc3 {[%clk 0:03:00.5]}
2... Nf6 {[%clk 0:03:00]} 3. g3 {[%clk 0:03:00]} 3... c6 {[%clk 0:02:58.7]} 4.
d4 {[%clk 0:02:56.9]} 4... exd4 {[%clk 0:02:54.5]} 5. Qxd4 {[%clk 0:02:57.8]}
5... Na6 {[%clk 0:02:55]} 6. Bg2 {[%clk 0:02:55.8]} 6... Bc5 {[%clk 0:02:55.7]}
7. Qd1 {[%clk 0:02:52.7]} 7... O-O {[%clk 0:02:55.2]} 8. Nf3 {[%clk 0:02:52.7]}
8... d5 {[%clk 0:02:51]} 9. cxd5 {[%clk 0:02:52.3]} 9... cxd5 {[%clk 0:02:48.1]}
10. O-O {[%clk 0:02:52.3]} 10... h6 {[%clk 0:02:48]} 11. b3 {[%clk 0:02:49.5]}
11... Re8 {[%clk 0:02:45.3]} 12. Bb2 {[%clk 0:02:49]} 12... Bg4 {[%clk 0:02:46]}
13. Na4 {[%clk 0:02:43.9]} 13... Bf8 {[%clk 0:02:43.3]} 14. h3 {[%clk
0:02:34.5]} 14... Bd7 {[%clk 0:02:38.6]} 15. e3 {[%clk 0:02:33.6]} 15... Nb4
{[%clk 0:02:34.7]} 16. Bd4 {[%clk 0:02:27.3]} 16... Ne4 {[%clk 0:02:27.3]} 17.
Ne5 {[%clk 0:02:19.5]} 17... Bxa4 {[%clk 0:02:16.2]} 18. bxa4 {[%clk 0:02:20.4]}
18... Rc8 {[%clk 0:02:13.6]} 19. Rb1 {[%clk 0:01:53.9]} 19... b6 {[%clk
0:02:11.8]} 20. a5 {[%clk 0:01:48.5]} 20... bxa5 {[%clk 0:02:01.5]} 21. Nd3
{[%clk 0:01:03.6]} 21... Nxa2 {[%clk 0:01:55.2]} 22. Rb7 {[%clk 0:01:03.2]}
22... Nac3 {[%clk 0:01:33.9]} 23. Qg4 {[%clk 0:00:52.8]} 23... Rc7 {[%clk
0:01:27.7]} 24. Rxc7 {[%clk 0:00:44.5]} 24... Qxc7 {[%clk 0:01:28.6]} 25. Nf4
{[%clk 0:00:44.6]} 25... Qc8 {[%clk 0:01:17.7]} 26. Qh5 {[%clk 0:00:38.8]} 26...
Qa6 {[%clk 0:01:02.9]} 27. Nxd5 {[%clk 0:00:31]} 27... g6 {[%clk 0:00:49]} 28.
Qh4 {[%clk 0:00:15.6]} 28... g5 {[%clk 0:00:35.1]} 29. Qg4 {[%clk 0:00:09.8]}
29... Nxd5 {[%clk 0:00:16.5]} 30. Bxe4 {[%clk 0:00:09.8]} 30... Nf6 {[%clk
0:00:17.1]} 31. Bxf6 {[%clk 0:00:09.7]} 31... Qxf6 {[%clk 0:00:18]} 32. Rd1
{[%clk 0:00:02.4]} 32... a4 {[%clk 0:00:17.9]} 33. Bd5 {[%clk 0:00:02]} 33... a3
{[%clk 0:00:17.1]} 34. Rd4 {[%clk 0:00:02.2]} 34... Rd8 {[%clk 0:00:15]} 0-1